lending/lending_fUSD_20250501
["ID","MTS","AMOUNT","RATE_DAILY","PERIOD"]
[359578324,1746137479685,-1762.62,0.00036438,11]
[359578325,1746137479695,-450.0,0.00036438,11]
[359578326,1746137479704,-840.52,0.00036438,11]
[359578327,1746137479713,-4646.57,0.00036438,11]
[359578328,1746137479723,-450.0,0.00036438,11]
[359578329,1746137479732,-450.0,0.00036438,11]
[359578330,1746137479741,-506.63,0.00036438,11]
[359578331,1746137479750,-901.41,0.00036438,11]
[359578332,1746137479759,-1284.0,0.00036438,11]
[359578333,1746137479769,-450.0,0.00036438,11]
[359578334,1746137479779,-911.57,0.00036438,11]
[359578335,1746137479788,-1195.77,0.00036438,11]
[359578336,1746137479798,-450.0,0.00036438,11]
[359578337,1746137479807,-3828.21,0.00036438,11]
[359578338,1746137479816,-787.8,0.00036438,11]
[359578339,1746137479826,-450.0,0.00036438,11]
[359578340,1746137479835,-1985.19,0.00036438,11]
[359578341,1746137479845,-513.8,0.00036438,11]
[359578342,1746137479855,-563.9,0.00036438,11]
[359578343,1746137479864,-546.39,0.00036438,11]
[359578344,1746137479874,-450.0,0.00036438,11]
[359578345,1746137479883,-450.0,0.00036438,11]
[359578346,1746137479892,-5579.35,0.00036438,11]
[359578347,1746137479902,-780.51,0.00036438,11]
[359578348,1746137479911,-692.91,0.00036438,11]
[359578349,1746137479921,-883.92,0.00036438,11]
[359578350,1746137479930,-450.0,0.00036438,11]
[359578351,1746137479940,-450.0,0.00036438,11]
[359578352,1746137479949,-1374.59,0.00036438,11]
[359578353,1746137479959,-450.0,0.00036438,11]
[359578354,1746137479968,-450.0,0.00036438,11]
[359578355,1746137479977,-151.0,0.00036438,7]
[359578356,1746137479987,-1190.64,0.00036438,11]
[359578357,1746137479996,-450.0,0.00036438,11]
[359578358,1746137480006,-450.0,0.00036438,11]
[359578359,1746137480016,-504.86,0.00036438,11]
[359578360,1746137480026,-184.355505,0.00036438,7]
[359578361,1746137480036,-560.05,0.00036438,11]
[359578362,1746137480045,-450.0,0.00036438,11]
[359578363,1746137480055,-726.16,0.00036438,11]
[359578364,1746137480064,-1288.94,0.00036438,11]
[359578365,1746137480073,-450.0,0.00036438,11]
[359578366,1746137480082,-184.355505,0.00036438,7]
[359578367,1746137480091,-699.05,0.00036438,11]
[359578368,1746137480101,-918.28,0.00036438,11]
[359578369,1746137480111,-500.0,0.00036438,11]
[359578370,1746137480120,-450.0,0.00036438,11]
[359578371,1746137480129,-450.0,0.00036438,11]
[359578372,1746137480139,-4227.14,0.00036438,11]
[359578373,1746137480341,-450.0,0.00036438,11]
[359578374,1746137480352,-876.41,0.00036438,11]
[359578375,1746137480362,-450.0,0.00036438,11]
[359578376,1746137480374,-492.77,0.00036438,11]
[359578377,1746137480383,-1796.83,0.00036438,11]
[359578378,1746137480392,-13693.55,0.00036438,11]
[359578379,1746137480403,-1840.92,0.00036438,11]
[359578380,1746137480412,-475.14,0.00036438,11]
[359578381,1746137480421,-368.84974199,0.00036438,11]
[359578382,1746137480430,-450.0,0.00036438,11]
[359578383,1746137480439,-450.0,0.00036438,11]
[359578384,1746137480449,-1096.09,0.00036438,11]
[359578385,1746137480458,-727.5,0.00036438,11]
[359578386,1746137480467,-558.89,0.00036438,11]
[359578387,1746137480477,-763.85,0.00036438,11]
[359578388,1746137480486,-1459.52,0.00036438,11]
[359578389,1746137480496,-1250.93,0.00036438,11]
[359578390,1746137480505,-450.0,0.00036438,11]
[359578391,1746137480514,-450.0,0.00036438,11]
[359578392,1746137480524,-450.0,0.00036438,11]
[359578393,1746137480533,-450.0,0.00036438,11]
[359578394,1746137480543,-450.0,0.00036438,11]
[359578395,1746137480552,-450.0,0.00036438,11]
[359578396,1746137480562,-11033.71028446,0.00036438,2]
[359578397,1746137481204,-171.04,0.0001999,2]
[359578398,1746137481214,-171.04,0.0001999,2]
[359578399,1746137481223,-66.08737376,0.0001999,2]
[359578400,1746137486025,300.0,0.00032877,60]
[359578403,1746137826160,250.0,0.00017,2]
[359578404,1746137827232,300.0,0.00019,2]
[359578406,1746138395430,-222.144534,0.000197,2]
[359578408,1746138470363,-200.0,0.00019799,2]
[359578409,1746138470390,-200.0,0.00019799,2]
[359578410,1746138470417,-1000.0,0.000198,2]
[359578411,1746138480010,-300.0,0.00019899,2]
[359578412,1746138480037,-4867.8494179,0.000199,2]
[359578413,1746138480065,-803.90039162,0.000199,2]
[359578414,1746138482474,200.0,0.000199,2]
[359578416,1746138503694,353.10020424,0.000199,2]
[359578417,1746138517461,899.999999,0.000151,2]
[359578420,1746138523418,150.9687,0.000199,2]
[359578421,1746138536027,282.6665,0.000199,2]
[359578428,1746138566586,519.37025324,0.000198,2]
[359578429,1746138631861,-1183.56382776,0.000198,2]
[359578430,1746138631871,-200.0,0.0001985,2]
[359578432,1746138631880,-1905.48574198,0.000199,2]
[359578433,1746138631889,-200.0,0.00019938,2]
[359578434,1746138631898,-192.16293825,0.00019973,2]
[359578435,1746138632011,-83.49107189,0.00019973,2]
[359578436,1746138632022,-162.78,0.0001999,2]
[359578437,1746138632031,-162.78,0.0001999,2]
[359578438,1746138632040,-162.78,0.0001999,2]
[359578439,1746138632050,-162.78,0.0001999,2]
[359578440,1746138632059,-162.78,0.0001999,2]
[359578441,1746138632068,-152.01736592,0.0001999,2]
[359578442,1746138632271,-10.76263408,0.0001999,2]
[359578444,1746138632281,-162.78,0.0001999,2]
[359578446,1746138632291,-162.78,0.0001999,2]
[359578448,1746138632300,-247.82821257,0.0001999,2]
[359578450,1746138632309,-247.82821257,0.0001999,2]
[359578452,1746138632319,-247.82821257,0.0001999,2]
[359578454,1746138632329,-300.0,0.00019998,2]
[359578456,1746138632338,-500.0,0.00019999,2]
[359578458,1746138632347,-269.87397639,0.00019999,2]
[359578460,1746138632360,-312.87278304,0.00019999,2]
[359578462,1746138632371,-56.25324057,0.00019999,2]
[359578464,1746138632381,-1200.0,0.00019999,2]
[359578466,1746138632390,-333.02450885,0.00019999,2]
[359578468,1746138632399,-147.31628274,0.00019999,2]
[359578470,1746138632411,-51.39113585,0.00019999,2]
[359578471,1746138632420,-266.16414035,0.0002,2]
[359578472,1746138632429,-405.53070831,0.0002,2]
[359578473,1746138632440,-557.53827879,0.0002,2]
[359578474,1746138632608,-29369.67554402,0.0002,2]
[359578475,1746138632618,-452.95011032,0.0002,2]
[359578479,1746138637929,-235.40013616,0.000199,2]
[359578480,1746138637939,-42064.36810579,0.0002,2]
[359578481,1746138637951,-1991.51200199,0.0002,2]
[359578482,1746138637963,-362.76676788,0.0002,2]
[359578483,1746138637978,-407.89415323,0.0002,2]
[359578484,1746138638021,-442.55678764,0.0002,2]
[359578485,1746138638033,-20438.94400905,0.0002,2]
[359578486,1746138638104,-989.12229439,0.0002,2]
[359578487,1746138638116,-1158719.85263352,0.0002,2]
[359578488,1746138638125,-1464565.96977303,0.0002,2]
[359578490,1746138638190,-792.0071554,0.0002,2]
[359578529,1746138640264,-5006.41337032,0.0002,2]
[359578530,1746138640291,-18759.97026236,0.0002,2]
[359578531,1746138640303,-5705.67880457,0.0002,2]
[359578532,1746138640313,-307.57156581,0.0002,2]
[359578533,1746138640324,-5253453.36141923,0.0002,2]
[359578536,1746138640810,-15015.03861038,0.0002,2]
[359578537,1746138640821,-641.01223463,0.0002,2]
[359578538,1746138640832,-3383.72374043,0.0002,2]
[359578539,1746138640843,-21278.74410741,0.0002,2]
[359578540,1746138640858,-392.61197805,0.0002,2]
[359578541,1746138640869,-8479.21,0.0002,2]
[359578544,1746138642983,-778.00599955,0.0002,2]
[359578548,1746138643064,-506.186903,0.0002,2]
[359578549,1746138643083,-4540.0,0.0002,2]
[359578550,1746138643159,-1562.12488222,0.0002,2]
[359578551,1746138643173,-503.0,0.0002,2]
[359578552,1746138643188,-7344.60111962,0.0002,2]
[359578555,1746138645968,-597.81677812,0.000199,2]
[359578556,1746138645980,-104689.58829519,0.0002,2]
[359578557,1746138646195,-726.09365616,0.0002,2]
[359578558,1746138646211,-784.9815,0.0002,2]
[359578559,1746138646227,-1414.157248,0.0002,2]
[359578560,1746138646242,-545.152395,0.0002,2]
[359578561,1746138646255,-1144.67356,0.0002,2]
[359578562,1746138646269,-472.95900005,0.0002,2]
[359578563,1746138646282,-1126.6565,0.0002,2]
[359578564,1746138646296,-138998.2788844,0.0002,2]
[359578572,1746138984109,-152.0,0.00019326,2]
[359578573,1746138987069,158.04,0.00027425,30]
[359578574,1746138989909,-402.37771748,0.00019326,2]
[359578575,1746139002833,-141.11228252,0.00019326,2]
[359578585,1746139270503,151.66196,0.0002769,40]
[359578586,1746139274387,997.99,0.0001891,2]
[359578587,1746139341098,250.0,0.00018935,2]
[359578588,1746139348197,873.53533,0.00019326,22]
[359578589,1746139405150,151.66196,0.00019326,22]
[359578590,1746139436521,2030.93,0.00018898,2]
[359578591,1746139458796,156.46,0.00016712,2]
[359578592,1746139466515,727.94611,0.00019326,22]
[359578593,1746139486260,184.38,0.00018889,2]
[359578594,1746139509357,151.66196,0.00019326,22]
[359578595,1746139521878,540.52,0.00018881,2]
[359578596,1746139552136,606.62176,0.00019326,22]
[359578597,1746139594931,151.66196,0.00019326,22]
[359578599,1746139623408,1503.11,0.00019272,2]
[359578602,1746139636057,250.0,0.00017,2]
[359578603,1746139637146,300.0,0.00019,2]
[359578604,1746139637722,505.51813,0.00019326,22]
[359578605,1746139652629,14217.83,0.00019251,2]
[359578606,1746139675528,181.51,0.0001894,2]
[359578607,1746139692237,151.66197,0.00019326,22]
[359578667,1746139734657,421.26511,0.00019326,22]
[359578668,1746139823437,3500.57,0.00018848,2]
[359578672,1746139832187,-510.959245,0.00019552,2]
[359578673,1746139832197,-250.0,0.00019601,2]
[359578674,1746139832207,-200.0,0.00019651,2]
[359578675,1746139832218,-150.0,0.00019753,2]
[359578676,1746139832227,-1633.4492,0.00019767,2]
[359578677,1746139832237,-300.0,0.00019781,2]
[359578678,1746139832248,-1200.0,0.00019781,2]
[359578679,1746139832258,-300.0,0.00019781,2]
[359578680,1746139832268,-300.0,0.00019781,2]
[359578681,1746139832278,-7994.44701577,0.00019782,2]
[359578682,1746139832288,-9050.0370584,0.00019789,2]
[359578683,1746139832298,-500.0,0.00019789,2]
[359578684,1746139832308,-500.0,0.00019789,2]
[359578685,1746139832318,-500.0,0.00019789,2]
[359578686,1746139832328,-500.0,0.00019789,2]
[359578687,1746139832339,-400.0,0.00019789,2]
[359578688,1746139832348,-500.0,0.00019789,2]
[359578690,1746139832358,-500.0,0.00019789,2]
[359578691,1746139832367,-500.0,0.00019789,2]
[359578693,1746139832377,-500.0,0.00019789,2]
[359578695,1746139832387,-500.0,0.00019789,2]
[359578697,1746139832397,-500.0,0.00019789,2]
[359578699,1746139832407,-24902.72753241,0.0001979,2]
[359578700,1746139832417,-1000.0,0.00019791,2]
[359578702,1746139832427,-7994.44701576,0.00019795,2]
[359578704,1746139832438,-500.0,0.00019799,2]
[359578706,1746139832447,-500.0,0.00019799,2]
[359578708,1746139832457,-500.0,0.00019799,2]
[359578709,1746139832466,-500.0,0.00019799,2]
[359578711,1746139832476,-500.0,0.00019799,2]
[359578713,1746139832485,-500.0,0.00019799,2]
[359578715,1746139832494,-500.0,0.00019799,2]
[359578717,1746139832503,-500.0,0.00019799,2]
[359578718,1746139832512,-500.0,0.00019799,2]
[359578720,1746139832522,-500.0,0.00019799,2]
[359578722,1746139832531,-500.0,0.00019799,2]
[359578724,1746139832540,-500.0,0.00019799,2]
[359578727,1746139832550,-500.0,0.00019799,2]
[359578728,1746139832559,-500.0,0.00019799,2]
[359578730,1746139832568,-500.0,0.00019799,2]
[359578732,1746139832577,-500.0,0.00019799,2]
[359578734,1746139832587,-500.0,0.00019799,2]
[359578736,1746139832596,-500.0,0.00019799,2]
[359578738,1746139832606,-500.0,0.00019799,2]
[359578740,1746139832615,-500.0,0.00019799,2]
[359578741,1746139832624,-500.0,0.00019799,2]
[359578743,1746139832633,-500.0,0.00019799,2]
[359578745,1746139832643,-500.0,0.00019799,2]
[359578747,1746139832652,-500.0,0.00019799,2]
[359578749,1746139832661,-291.68162438,0.00019799,2]
[359578750,1746139832670,-36495.58481718,0.000198,2]
[359578757,1746139832743,-629.15700853,0.000198,2]
[359578769,1746139833086,-738.8269785,0.000198,2]
[359578772,1746139833099,-2007.11221684,0.000198,2]
[359578784,1746139838167,-15350.51377029,0.000198,2]
[359578785,1746139838179,-3729.2588,0.000198,2]
[359578786,1746139838189,-689.05747854,0.000198,2]
[359578787,1746139838199,-7994.44701576,0.00019808,2]
[359578788,1746139838209,-689.05747849,0.00019817,2]
[359578789,1746139838221,-6260.19172488,0.00019821,2]
[359578790,1746139838232,-476.43552863,0.00019821,2]
[359578791,1746139838244,-1257.81976225,0.00019821,2]
[359578792,1746139838254,-689.05747849,0.00019833,2]
[359578793,1746139838264,-7994.44701576,0.00019834,2]
[359578794,1746139838273,-12500.0,0.00019847,2]
[359578795,1746139838283,-7994.44701576,0.00019848,2]
[359578796,1746139838292,-689.05747849,0.0001985,2]
[359578797,1746139838302,-615.668,0.00019856,2]
[359578798,1746139838312,-12500.0,0.00019856,2]
[359578799,1746139838322,-7994.44701576,0.00019861,2]
[359578800,1746139838331,-233.11715619,0.00019864,2]
[359578802,1746139838341,-12500.0,0.00019865,2]
[359578803,1746139838351,-689.05747849,0.00019867,2]
[359578804,1746139838361,-12500.0,0.00019874,2]
[359578805,1746139838370,-7994.44701576,0.00019874,2]
[359578806,1746139838381,-12500.0,0.00019882,2]
[359578807,1746139838391,-689.05747849,0.00019883,2]
[359578808,1746139838401,-7994.44701576,0.00019887,2]
[359578809,1746139838411,-12500.0,0.00019891,2]
[359578810,1746139838420,-12500.0,0.000199,2]
[359578811,1746139838430,-169.23877119,0.000199,2]
[359578813,1746139838440,-612.2993,0.000199,2]
[359578814,1746139838450,-331.16712901,0.000199,2]
[359578815,1746139838459,-689.05747849,0.000199,2]
[359578817,1746139838468,-7994.44701576,0.000199,2]
[359578818,1746139838477,-745.60714006,0.00019951,2]
[359578819,1746139838487,-1500.0,0.00019956,2]
[359578820,1746139838496,-501.47327578,0.00019973,2]
[359578822,1746139838506,-344.0,0.00019973,2]
[359578824,1746139838518,-185.65563741,0.00019973,2]
[359578825,1746139838527,-500.79231643,0.00019973,2]
[359578826,1746139838538,-1041.55218793,0.0001999,2]
[359578827,1746139838549,-1041.55218793,0.0001999,2]
[359578828,1746139838559,-1041.55218793,0.0001999,2]
[359578829,1746139838569,-300.0,0.00019999,2]
[359578830,1746139838579,-342.28362598,0.0002,2]
[359578831,1746139838590,-1246963.15133639,0.0002,2]
[359578832,1746139838600,-1548001.62261197,0.0002,2]
[359578833,1746139838628,-557.5,0.0002,2]
[359578834,1746139838641,-112275.57908745,0.0002,2]
[359578876,1746139840376,-2164.215192,0.0002,2]
[359578880,1746139840413,-8165.5691154,0.0002,2]
[359578885,1746139840444,-4696474.97941599,0.0002,2]
[359578887,1746139840455,-556978.38200324,0.0002,2]
[359578917,1746139840803,-8956.38412251,0.0002,2]
[359578954,1746139843255,-336915.97631709,0.0002,2]
[359578955,1746139843363,-307.08135369,0.0002,2]
[359578961,1746139846213,-723.73,0.0002,2]
[359579055,1746140040231,421.26511,0.0002446,33]
[359579056,1746140040353,421.26512,0.0002696,38]
[359579057,1746140040391,421.26511,0.0002946,44]
[359579065,1746140082401,-188.65158399,0.00019366,2]
[359579066,1746140087600,-212.81803252,0.00019366,2]
[359579069,1746140096964,158.04,0.00027425,30]
[359579070,1746140097889,-212.82932349,0.00019366,2]
[359579071,1746140101959,-161.33106,0.00019366,2]
[359579092,1746140345597,421.26511,0.0002578,36]
[359579095,1746140664909,210.63255,0.0002,23]
[359579097,1746140983881,210.63257,0.0002,23]
[359579099,1746141032237,-4161.19,0.00019353,2]
[359579100,1746141032247,-200.0,0.00019359,2]
[359579101,1746141032257,-250.0,0.00019359,2]
[359579102,1746141032266,-50.96,0.00019366,2]
[359579103,1746141032276,-200.0,0.00019367,2]
[359579104,1746141032285,-195.01,0.00019368,2]
[359579105,1746141032294,-1200.0,0.00019439,2]
[359579106,1746141032305,-300.0,0.00019439,2]
[359579107,1746141032314,-2828.36794,0.0001944,2]
[359579108,1746141032382,-2286.70115565,0.0001944,2]
[359579109,1746141032428,-558.99099853,0.0001944,2]
[359579110,1746141032565,-428.70990582,0.0001944,2]
[359579111,1746141032575,-210.28181884,0.00019478,2]
[359579112,1746141032584,-210.06,0.00019509,2]
[359579113,1746141032594,-777.50609551,0.00019511,2]
[359579114,1746141032604,-1500.0,0.00019571,2]
[359579115,1746141032615,-449.32,0.00019642,2]
[359579117,1746141032625,-777.50609551,0.00019754,2]
[359579119,1746141032634,-250.0,0.00019895,2]
[359579121,1746141032644,-1071.119,0.00019899,2]
[359579123,1746141032654,-758.0,0.00019899,2]
[359579125,1746141032664,-500.0,0.00019899,2]
[359579127,1746141032674,-500.0,0.00019899,2]
[359579129,1746141032684,-500.0,0.00019899,2]
[359579131,1746141032693,-500.0,0.00019899,2]
[359579133,1746141032703,-369.16816244,0.00019899,2]
[359579135,1746141032712,-158.912,0.00019899,2]
[359579137,1746141032722,-3774.6723236,0.000199,2]
[359579139,1746141032731,-16710.1184,0.000199,2]
[359579141,1746141032742,-612.2993,0.000199,2]
[359579143,1746141032751,-239.00626639,0.000199,2]
[359579145,1746141032761,-28525.578,0.000199,2]
[359579146,1746141032770,-150.0,0.000199,2]
[359579148,1746141032779,-150.0,0.000199,2]
[359579150,1746141032789,-3606.1351,0.000199,2]
[359579152,1746141032798,-270.0588,0.000199,2]
[359579154,1746141032808,-169.63943704,0.000199,2]
[359579157,1746141032818,-259.88499225,0.000199,2]
[359579159,1746141032827,-155.08545775,0.000199,2]
[359579161,1746141032836,-2500.0,0.000199,2]
[359579163,1746141032846,-344.0,0.00019973,2]
[359579165,1746141032855,-1620.20000006,0.0001999,2]
[359579167,1746141032864,-1041.55218793,0.0001999,2]
[359579169,1746141032873,-163.18200934,0.00019999,2]
[359579172,1746141032883,-11578.0224535,0.0002,2]
[359579174,1746141032895,-75126.20115396,0.0002,2]
[359579262,1746141038628,-1103.78704119,0.0002,2]
[359579265,1746141038639,-636.81251859,0.0002,2]
[359579266,1746141038651,-3192.99332142,0.0002,2]
[359579269,1746141038670,-779.54,0.0002,2]
[359579272,1746141038682,-2216675.74635627,0.0002,2]
[359579274,1746141038691,-250.0,0.0002,2]
[359579276,1746141038700,-250.0,0.0002,2]
[359579278,1746141038709,-250.0,0.0002,2]
[359579280,1746141038719,-250.0,0.0002,2]
[359579282,1746141038728,-250.0,0.0002,2]
[359579284,1746141038737,-250.0,0.0002,2]
[359579286,1746141038746,-250.0,0.0002,2]
[359579288,1746141038755,-250.0,0.0002,2]
[359579289,1746141038764,-250.0,0.0002,2]
[359579292,1746141038774,-250.0,0.0002,2]
[359579293,1746141038783,-358.6,0.0002,2]
[359579295,1746141038793,-260.22705525,0.0002,2]
[359579298,1746141038802,-150.0,0.0002,2]
[359579300,1746141038812,-150.0,0.0002,2]
[359579302,1746141038822,-161.31,0.0002,2]
[359579304,1746141038834,-337.85,0.00020059,2]
[359579306,1746141038843,-23900.0,0.0002006,2]
[359579308,1746141038852,-166.68,0.00020062,2]
[359579310,1746141038862,-12953.86849463,0.00020073,2]
[359579312,1746141038871,-150.0,0.000201,2]
[359579314,1746141038880,-15982.50076877,0.000207,2]
[359579316,1746141038890,-1154.72508518,0.00021,2]
[359579318,1746141038901,-190.58164633,0.00021,2]
[359579319,1746141038911,-350.0,0.00021,2]
[359579322,1746141038921,-500.0,0.00021048,2]
[359579324,1746141038930,-500.0,0.00021048,2]
[359579325,1746141038940,-629.906702,0.00021048,2]
[359579328,1746141038949,-490.69981868,0.00021048,2]
[359579329,1746141038961,-272.0,0.00021179,2]
[359579331,1746141038972,-200.0,0.00021256,2]
[359579334,1746141038982,-1680.0,0.00021281,2]
[359579336,1746141038991,-200.0,0.00021288,2]
[359579338,1746141039003,-250.0,0.00021288,2]
[359579339,1746141039013,-500.79231643,0.000213,2]
[359579341,1746141039022,-597.73,0.00021301,2]
[359579343,1746141039034,-200.0,0.00021302,2]
[359579345,1746141039046,-200.0,0.00021302,2]
[359579348,1746141039056,-250.0,0.00021302,2]
[359579350,1746141039066,-1403.65,0.00021345,2]
[359579352,1746141039076,-1000.0,0.00021354,2]
[359579354,1746141039085,-2701.19,0.0002151,2]
[359579356,1746141039094,-550.46888103,0.00021541,2]
[359579358,1746141039104,-501.47327578,0.00021541,2]
[359579360,1746141039115,-185.65563741,0.00021541,2]
[359579362,1746141039126,-500.0,0.00021554,2]
[359579364,1746141039136,-633.2360187,0.00021554,2]
[359579366,1746141039147,-826.59,0.0002163,2]
[359579368,1746141039158,-7314.86831856,0.000217,2]
[359579370,1746141039168,-318.85,0.00021917,2]
[359579372,1746141039176,-247.77380099,0.00022,2]
[359579374,1746141039186,-500.0,0.00022,2]
[359579376,1746141039195,-232.19998928,0.0002211,2]
[359579378,1746141039204,-1097.8656,0.000225,15]
[359579380,1746141039213,-5523.7254445,0.000225,2]
[359579382,1746141039222,-150.0,0.00022577,2]
[359579384,1746141039232,-259.88499225,0.00022731,2]
[359579386,1746141039241,-250.0,0.00022794,2]
[359579387,1746141039249,-239.00626639,0.00022959,2]
[359579390,1746141039259,-400.0,0.00023,2]
[359579392,1746141039269,-200.0,0.00023,2]
[359579393,1746141039278,-19106.16773526,0.000232,2]
[359579395,1746141039288,-318.85,0.00023287,2]
[359579398,1746141039297,-655.0,0.00023298,2]
[359579399,1746141039307,-166.68,0.00023373,2]
[359579401,1746141039317,-368.95,0.00023836,2]
[359579403,1746141039326,-826.59,0.00023894,2]
[359579405,1746141039335,-10029.81877166,0.00024,2]
[359579408,1746141039345,-1000.0,0.00024023,2]
[359579409,1746141039355,-500.0,0.00024411,2]
[359579411,1746141039364,-318.85,0.00024657,2]
[359579413,1746141039374,-500.0,0.00024799,2]
[359579415,1746141039383,-484064.88922691,0.000248,2]
[359579418,1746141039396,-403.3,0.000248,2]
[359579422,1746141039422,-19405.43333378,0.000248,2]
[359579424,1746141039433,-2519.08544243,0.000248,2]
[359579426,1746141039445,-742.65133462,0.000248,2]
[359579428,1746141039456,-65700.08825703,0.000248,2]
[359579453,1746141040546,-15594.34984463,0.000199,2]
[359579454,1746141040556,-7263.57974523,0.000248,2]
[359579455,1746141040566,-14495.95583355,0.000249,2]
[359579456,1746141040577,-6162.73586877,0.000249,2]
[359579457,1746141040589,-2239.99555988,0.000249,2]
[359579458,1746141040600,-333.81892786,0.000249,2]
[359579459,1746141040612,-41453.73110074,0.000249,2]
[359579460,1746141040689,-22850.3884999,0.000249,2]
[359579461,1746141040699,-382.97909322,0.00025,2]
[359579462,1746141040709,-1028.11380351,0.00025,2]
[359579463,1746141040719,-8170.02163448,0.00025,2]
[359579464,1746141040729,-161.57638157,0.00025,2]
[359579465,1746141040739,-450.0,0.00025,2]
[359579466,1746141040749,-3263.75796655,0.000251,2]
[359579467,1746141040758,-799.44470157,0.00025197,2]
[359579468,1746141040767,-200.0,0.000253,10]
[359579469,1746141040777,-503.0,0.00025379,2]
[359579470,1746141040787,-259.88499225,0.00025562,2]
[359579471,1746141040797,-239.00626639,0.00026019,2]
[359579472,1746141040806,-318.85,0.00026027,2]
[359579473,1746141040816,-826.59,0.00026158,2]
[359579474,1746141040826,-7029.48774566,0.000265,2]
[359579475,1746141040836,-1000.0,0.00026692,2]
[359579476,1746141040845,-799.44470157,0.00026962,2]
[359579477,1746141040854,-500.0,0.00027,2]
[359579478,1746141040863,-342.18308872,0.00027397,2]
[359579479,1746141040872,-318.85,0.00027397,2]
[359579480,1746141040882,-189.09,0.00027397,2]
[359579481,1746141040891,-897.2,0.00027397,2]
[359579482,1746141040900,-1000.0,0.00027397,2]
[359579483,1746141040910,-797.0,0.0002763,2]
[359579484,1746141040920,-481.135,0.0002763,2]
[359579485,1746141040930,-1138.0,0.0002763,2]
[359579486,1746141040939,-169.63943703,0.00028393,2]
[359579487,1746141040949,-259.88499225,0.00028393,2]
[359579488,1746141040959,-181.51,0.00028409,2]
[359579489,1746141040972,-826.59,0.00028421,2]
[359579490,1746141040981,-799.44470157,0.00028728,2]
[359579491,1746141040990,-318.85,0.00028767,2]
[359579492,1746141041000,-897.2,0.00028767,2]
[359579493,1746141041011,-155.15062595,0.00029,2]
[359579494,1746141041020,-550.0,0.00029,2]
[359579495,1746141041030,-195.01,0.00029051,2]
[359579496,1746141041041,-239.00626639,0.00029078,2]
[359579497,1746141041050,-151.0,0.00029231,2]
[359579498,1746141041059,-207.4,0.00029231,2]
[359579499,1746141041069,-1000.0,0.00029361,2]
[359579500,1746141041078,-500.0,0.00029425,2]
[359579501,1746141041087,-500.0,0.00029425,2]
[359579502,1746141041096,-236.0,0.000297,2]
[359579503,1746141041106,-1422.79,0.0003,2]
[359579504,1746141041116,-1158.44044072,0.0003,10]
[359579505,1746141041125,-1246.67556792,0.0003,2]
[359579506,1746141041134,-159.0,0.0003,2]
[359579507,1746141041143,-10497.66,0.0003011,2]
[359579508,1746141041152,-2701.19,0.00030115,2]
[359579509,1746141041162,-318.85,0.00030136,2]
[359579510,1746141041171,-610.0,0.00030137,2]
[359579511,1746141041180,-150.0,0.00030137,2]
[359579512,1746141041189,-897.2,0.00030137,2]
[359579513,1746141041198,-233.75789708,0.00030137,2]
[359579514,1746141041207,-500.0,0.00030137,2]
[359579515,1746141041216,-206.0,0.0003048,2]
[359579516,1746141041225,-799.44470157,0.00030493,2]
[359579517,1746141041234,-215.0738,0.000306,2]